fUSD/lending_fUSD_20260429
["ID","MTS","AMOUNT","RATE_DAILY","PERIOD"]
[421315758,1777415439512,-500.0,0.00010271,2]
[421315760,1777415439521,-711.0,0.00010317,5]
[421315762,1777415439531,-327.0,0.00010339,2]
[421315764,1777415439540,-420.0,0.00010339,2]
[421315767,1777415439549,-1481.23780761,0.00010469,2]
[421315770,1777415439559,-181.08010149,0.00010469,2]
[421315772,1777415439569,-151.0,0.00010472,2]
[421315774,1777415439579,-5000.0,0.000106,2]
[421315776,1777415439588,-350.0,0.00010606,2]
[421315778,1777415439597,-367.23,0.00010645,2]
[421315780,1777415439607,-164.11242867,0.00010673,2]
[421315782,1777415439618,-500.0,0.00010673,2]
[421315784,1777415439627,-161.0,0.0001069,2]
[421315785,1777415439636,-51330.36364631,0.000107,2]
[421315786,1777415439646,-200.0,0.000107,2]
[421315787,1777415439655,-1533.0,0.000107,2]
[421315788,1777415439665,-152.0,0.000107,2]
[421315789,1777415439675,-1533.0,0.000107,2]
[421315790,1777415439685,-152.0,0.000107,2]
[421315791,1777415439694,-2000.0,0.000107,2]
[421315792,1777415439703,-1000.0,0.000107,2]
[421315793,1777415439713,-313.0,0.000107,2]
[421315794,1777415439722,-307.0,0.000107,2]
[421315795,1777415439732,-2568.554029,0.00010783,2]
[421315796,1777415439741,-200.0,0.00010807,2]
[421315797,1777415439751,-780.85318051,0.00010826,2]
[421315798,1777415439761,-253.5099548,0.00010898,2]
[421315799,1777415439771,-160.54,0.000109,2]
[421315800,1777415439783,-2000.0,0.000109,2]
[421315801,1777415439795,-2895.60578621,0.000109,2]
[421315802,1777415439806,-2895.60578614,0.000109,2]
[421315803,1777415439816,-2895.60578614,0.000109,2]
[421315804,1777415439828,-2895.60578614,0.000109,2]
[421315805,1777415439838,-2895.60578614,0.000109,2]
[421315806,1777415439848,-2662.4354496,0.0001095,2]
[421315807,1777415439861,-151.0,0.00010959,2]
[421315808,1777415439871,-350.0,0.00011016,2]
[421315809,1777415439882,-1536.04360649,0.00011017,2]
[421315810,1777415439893,-187.78006525,0.00011017,2]
[421315811,1777415439903,-360.91682694,0.00011043,2]
[421315812,1777415439913,-2053.76658893,0.00011099,2]
[421315813,1777415439922,-2053.76658889,0.00011099,2]
[421315814,1777415439933,-2053.76658889,0.00011099,2]
[421315815,1777415439943,-2053.76658889,0.00011099,2]
[421315816,1777415439955,-2053.76658889,0.00011099,2]
[421315817,1777415439965,-2053.76658889,0.00011099,2]
[421315818,1777415439975,-2053.76658889,0.00011099,2]
[421315819,1777415439985,-151.0,0.00011099,2]
[421315820,1777415439995,-151.0,0.00011099,2]
[421315821,1777415440006,-472.054185,0.00011099,2]
[421315822,1777415440017,-472.054185,0.00011099,2]
[421315823,1777415440028,-472.054185,0.00011099,2]
[421315824,1777415440038,-472.054185,0.00011099,2]
[421315825,1777415440048,-255.060172,0.00011099,2]
[421315826,1777415440064,-255.060172,0.00011099,2]
[421315827,1777415440080,-255.060172,0.00011099,2]
[421315828,1777415440094,-255.060172,0.00011099,2]
[421315829,1777415440108,-2000.0,0.000111,2]
[421315830,1777415440122,-2895.60578614,0.000112,2]
[421315831,1777415440138,-151.12206715,0.0001129,2]
[421315832,1777415440165,-2000.0,0.000113,2]
[421315833,1777415440184,-2053.76658889,0.00011356,2]
[421315834,1777415440200,-587.0,0.00011373,2]
[421315835,1777415440216,-350.0,0.00011392,2]
[421315836,1777415440232,-6224.6218855,0.00011424,2]
[421315837,1777415440246,-2000.0,0.000115,2]
[421315838,1777415440263,-234.0,0.000115,2]
[421315839,1777415440278,-234.0,0.000115,2]
[421315840,1777415440292,-234.0,0.000115,2]
[421315841,1777415440308,-234.0,0.000115,2]
[421315842,1777415440323,-2895.60578614,0.0001155,2]
[421315843,1777415440337,-1592.87721993,0.00011565,2]
[421315844,1777415440353,-261.30907878,0.00011565,2]
[421315845,1777415440367,-6275.9188411,0.00011576,2]
[421315846,1777415440382,-2053.76658889,0.00011628,2]
[421315847,1777415440397,-227.85739703,0.00011671,2]
[421315848,1777415440410,-3811.65,0.000117,2]
[421315849,1777415440423,-2000.0,0.000117,2]
[421315850,1777415440438,-7297.73070865,0.00011742,2]
[421315851,1777415440451,-4143.03995637,0.0001176,2]
[421315852,1777415440465,-213.181707,0.0001176,2]
[421315853,1777415440479,-1388.9008781,0.00011798,2]
[421315854,1777415440493,-2568.554029,0.00011818,2]
[421315855,1777415440507,-2392.9040887,0.00011844,2]
[421315856,1777415440524,-300.0,0.00011845,2]
[421315857,1777415440536,-300.0,0.00011845,2]
[421315858,1777415440548,-666.0,0.00011845,2]
[421315859,1777415440559,-164633.6679572,0.00011846,2]
[421315860,1777415440575,-234.0,0.00011846,2]
[421315861,1777415440588,-234.0,0.00011846,2]
[421315862,1777415440603,-234.0,0.00011846,2]
[421315863,1777415440617,-234.0,0.00011846,2]
[421315864,1777415440631,-151.0,0.00011846,2]
[421315865,1777415440646,-151.0,0.00011846,2]
[421315866,1777415440661,-472.054185,0.00011846,2]
[421315867,1777415440673,-472.054185,0.00011846,2]
[421315868,1777415440686,-472.054185,0.00011846,2]
[421315869,1777415440702,-472.054185,0.00011846,2]
[421315870,1777415440715,-255.060172,0.00011846,2]
[421315871,1777415440729,-255.060172,0.00011846,2]
[421315872,1777415440745,-255.060172,0.00011846,2]
[421315873,1777415440759,-255.060172,0.00011846,2]
[421315875,1777415440772,-500.0,0.00011873,2]
[421315878,1777415440783,-1802.36096664,0.00011879,2]
[421315880,1777415440795,-10000.0,0.0001188,2]
[421315882,1777415440806,-780.85318051,0.000119,2]
[421315883,1777415440817,-2053.76658889,0.000119,2]
[421315885,1777415440828,-2895.60578614,0.000119,2]
[421315886,1777415440840,-3824.51538185,0.000119,2]
[421315887,1777415440856,-15268.47169966,0.000119,2]
[421315888,1777415440869,-253.5099548,0.00011944,2]
[421315889,1777415440881,-1400.3467761,0.00011961,2]
[421315890,1777415440897,-151.0,0.0001197,2]
[421315891,1777415440909,-300.0,0.00011972,2]
[421315892,1777415440922,-300.0,0.00011972,2]
[421315893,1777415440936,-666.0,0.00011972,2]
[421315894,1777415440950,-18806.0,0.00011973,2]
[421315895,1777415440967,-44078.0,0.00011973,2]
[421315896,1777415440979,-1217.90324046,0.0001199,2]
[421315897,1777415440992,-1217.90324046,0.0001199,2]
[421315898,1777415441009,-1160.47,0.00011991,2]
[421315899,1777415441023,-223.44,0.00011991,2]
[421315900,1777415441035,-672.06,0.00011991,2]
[421315901,1777415441049,-7032.43,0.00011991,2]
[421315902,1777415441061,-403.74,0.00011991,2]
[421315903,1777415441074,-256.45192907,0.00011997,2]
[421315904,1777415441085,-300.0,0.00011999,2]
[421315905,1777415441097,-666.0,0.00011999,2]
[421315906,1777415441109,-500.0,0.00011999,2]
[421315907,1777415441120,-500.0,0.00011999,3]
[421315908,1777415441134,-500.0,0.00011999,4]
[421315909,1777415441146,-500.0,0.00011999,5]
[421315910,1777415441160,-1093.91752428,0.00011999,3]
[421315911,1777415441173,-155.0,0.00011999,2]
[421315912,1777415441185,-4570531.13735918,0.00012,2]
[421315913,1777415441204,-696.40112496,0.00012,2]
[421315914,1777415441308,-239.36116847,0.0001,2]
[421315915,1777415441321,-274.71149558,0.00012,2]
[421315916,1777415441337,-512.27802841,0.00012,2]
[421315917,1777415441352,-665.0,0.00012,2]
[421315918,1777415441368,-2117.85157499,0.00012,2]
[421315919,1777415441384,-17366.869809,0.00012,2]
[421315920,1777415441400,-472471.18969674,0.00012,2]
[421315921,1777415441415,-482.25934277,0.00012,2]
[421315929,1777415442821,-229612.91163165,9.439e-05,2]
[421315930,1777415443085,-1179.48088015,9.439e-05,2]
[421315937,1777415446048,-35683.30065166,9.439e-05,2]
[421315938,1777415446063,-207653.3875265,9.439e-05,2]
[421315939,1777415446103,-6754.41849012,9.439e-05,2]
[421315961,1777416631928,-579.75456,8.944e-05,2]
[421315962,1777416631946,-410.6584033,8.944e-05,2]
[421315963,1777416631996,-4661.9831567,8.944e-05,2]
[421315964,1777416632006,-389.93904073,8.99e-05,2]
[421315965,1777416632016,-300.0,8.995e-05,2]
[421315966,1777416632026,-1200.0,8.995e-05,2]
[421315967,1777416632036,-4369.12612016,8.996e-05,2]
[421315968,1777416632046,-300.0,9.007e-05,2]
[421315969,1777416632056,-300.0,9.03e-05,2]
[421315970,1777416632065,-500.0,9.053e-05,2]
[421315971,1777416632075,-300.0,9.063e-05,2]
[421315972,1777416632085,-5000.0,9.064e-05,2]
[421315973,1777416632096,-300.0,9.064e-05,2]
[421315974,1777416632106,-500.0,9.082e-05,2]
[421315975,1777416632116,-500.0,9.082e-05,2]
[421315976,1777416632126,-297.32419767,9.082e-05,2]
[421315977,1777416632135,-3820.66553951,9.137e-05,2]
[421315978,1777416632145,-300.0,9.137e-05,2]
[421315979,1777416632154,-300.21724868,9.137e-05,2]
[421315980,1777416632164,-245990.7434,9.29e-05,2]
[421315981,1777416632173,-24386.59865288,9.29e-05,2]
[421315982,1777416632185,-15624.19799956,9.29e-05,2]
[421315983,1777416632198,-87701.51614756,9.29e-05,2]
[421315984,1777416632208,-500.0,9.302e-05,2]
[421315986,1777416632220,-500.0,9.302e-05,2]
[421315987,1777416632230,-500.0,9.302e-05,2]
[421315988,1777416632240,-150.0,9.302e-05,2]
[421315989,1777416632250,-350.0,9.302e-05,2]
[421315990,1777416632259,-150.0,9.302e-05,2]
[421315991,1777416632268,-150.0,9.302e-05,2]
[421315992,1777416632278,-150.0,9.302e-05,2]
[421315993,1777416632287,-150.0,9.302e-05,2]
[421315994,1777416632296,-150.0,9.302e-05,2]
[421315995,1777416632306,-250.0,9.302e-05,2]
[421315996,1777416632316,-4033.28364638,9.337e-05,2]
[421315997,1777416632325,-6786.3412,9.338e-05,2]
[421315998,1777416632336,-3037.324,9.389e-05,2]
[421315999,1777416632346,-198.592,9.389e-05,2]
[421316000,1777416632355,-150.0,9.389e-05,2]
[421316001,1777416632365,-34804.53565574,9.39e-05,2]
[421316002,1777416632378,-2107.37240693,9.39e-05,2]
[421316003,1777416632396,-3037.563882,9.39e-05,2]
[421316004,1777416632408,-699.20288059,9.39e-05,2]
[421316005,1777416632421,-177.81748143,9.39e-05,2]
[421316006,1777416632434,-204.88,9.391e-05,2]
[421316007,1777416632444,-131.92981223,9.392e-05,2]
[421316033,1777416638151,-500.0,9.389e-05,2]
[421316034,1777416638162,-152.72751354,9.389e-05,2]
[421316035,1777416638188,-346.27248646,9.389e-05,2]
[421316061,1777416640307,-153.72751354,9.389e-05,2]
[421316062,1777416640319,-182.30326143,9.389e-05,2]
[421316063,1777416640330,-314.97018777,9.392e-05,2]
[421316064,1777416640340,-500.0,9.413e-05,2]
[421316065,1777416640350,-500.0,9.413e-05,2]
[421316066,1777416640364,-500.0,9.413e-05,2]
[421316067,1777416640374,-500.0,9.413e-05,2]
[421316068,1777416640383,-500.0,9.438e-05,2]
[421316069,1777416640393,-250.0,9.438e-05,2]
[421316070,1777416640404,-293.78,9.438e-05,2]
[421316071,1777416640416,-517.0,9.439e-05,3]
[421316072,1777416640426,-160.0,9.439e-05,3]
[421316073,1777416640437,-150.0,9.503e-05,2]
[421316074,1777416640448,-150.0,9.503e-05,2]
[421316075,1777416640460,-150.0,9.503e-05,2]
[421316076,1777416640471,-265.14027138,9.503e-05,2]
[421316077,1777416640481,-150.0,9.503e-05,2]
[421316078,1777416640491,-170.49964996,9.503e-05,2]
[421316079,1777416640502,-500.0,9.503e-05,2]
[421316080,1777416640512,-500.0,9.503e-05,2]
[421316081,1777416640525,-500.0,9.503e-05,2]
[421316082,1777416640536,-500.0,9.503e-05,2]
[421316083,1777416640549,-500.0,9.503e-05,2]
[421316084,1777416640560,-500.0,9.503e-05,2]
[421316085,1777416640577,-500.0,9.503e-05,2]
[421316086,1777416640587,-500.0,9.503e-05,2]
[421316087,1777416640598,-500.0,9.503e-05,2]
[421316088,1777416640610,-500.0,9.503e-05,2]
[421316089,1777416640622,-500.0,9.503e-05,2]
[421316090,1777416640632,-500.0,9.503e-05,2]
[421316091,1777416640642,-500.0,9.503e-05,2]
[421316092,1777416640654,-500.0,9.503e-05,2]
[421316093,1777416640665,-500.0,9.503e-05,2]
[421316094,1777416640676,-258.642693,9.503e-05,2]
[421316095,1777416640687,-447.58842795,9.503e-05,2]
[421316096,1777416640697,-500.0,9.503e-05,2]
[421316097,1777416640708,-500.0,9.503e-05,2]
[421316098,1777416640719,-500.0,9.503e-05,2]
[421316099,1777416640729,-500.0,9.503e-05,2]
[421316100,1777416640739,-500.0,9.503e-05,2]
[421316101,1777416640750,-500.0,9.503e-05,2]
[421316102,1777416640762,-500.0,9.503e-05,2]
[421316103,1777416640772,-500.0,9.503e-05,2]
[421316105,1777416640783,-217.42189229,9.503e-05,2]
[421316106,1777416640793,-500.0,9.503e-05,2]
[421316107,1777416640803,-500.0,9.503e-05,2]
[421316108,1777416640813,-500.0,9.503e-05,2]
[421316109,1777416640822,-500.0,9.503e-05,2]
[421316110,1777416640833,-500.0,9.503e-05,2]
[421316111,1777416640843,-500.0,9.503e-05,2]
[421316112,1777416640854,-500.0,9.503e-05,2]
[421316113,1777416640865,-500.0,9.503e-05,2]
[421316114,1777416640875,-500.0,9.503e-05,2]
[421316115,1777416640887,-500.0,9.503e-05,2]
[421316116,1777416640898,-500.0,9.503e-05,2]
[421316117,1777416640909,-318.28402247,9.503e-05,2]
[421316118,1777416640920,-151.53031816,9.503e-05,2]
[421316119,1777416640930,-150.0,9.503e-05,2]
[421316120,1777416640942,-150.0,9.503e-05,2]
[421316121,1777416640953,-150.0,9.503e-05,2]
[421316122,1777416640964,-150.0,9.503e-05,2]
[421316123,1777416640974,-222.35010651,9.503e-05,2]
[421316124,1777416640984,-150.0,9.552e-05,2]
[421316125,1777416640994,-150.0,9.552e-05,2]
[421316126,1777416641010,-261.0066596,9.552e-05,2]
[421316127,1777416641020,-150.0,9.552e-05,2]
[421316128,1777416641030,-150.0,9.552e-05,2]
[421316129,1777416641040,-150.0,9.552e-05,2]
[421316130,1777416641051,-150.0,9.552e-05,2]
[421316131,1777416641063,-150.0,9.552e-05,2]
[421316132,1777416641073,-150.0,9.552e-05,2]
[421316133,1777416641420,-150.0,9.552e-05,2]
[421316134,1777416641432,-150.0,9.552e-05,2]
[421316135,1777416641442,-150.0,9.552e-05,2]
[421316136,1777416641453,-150.0,9.552e-05,2]
[421316137,1777416641463,-250.0,9.552e-05,2]
[421316138,1777416641474,-250.0,9.552e-05,2]
[421316139,1777416641483,-1420.67251119,9.67e-05,2]
[421316140,1777416641496,-423.58748881,9.67e-05,2]
[421316141,1777416641507,-218.33935325,9.691e-05,2]
[421316142,1777416641516,-500.0,9.712e-05,2]
[421316143,1777416641531,-174.37798597,9.712e-05,2]
[421316144,1777416641544,-119.40201403,9.712e-05,2]
[421316145,1777416641555,-388.11415823,9.726e-05,2]
[421316146,1777416641565,-300.0,9.883e-05,2]
[421316147,1777416641575,-250.0,9.883e-05,2]
[421316148,1777416641585,-5000.0,9.883e-05,2]
[421316149,1777416641595,-300.0,9.883e-05,2]
[421316150,1777416641605,-250.0,9.883e-05,2]
[421316151,1777416641615,-730.44051201,9.894e-05,2]
[421316152,1777416641632,-364.02495724,9.894e-05,2]
[421316157,1777416642936,-585.53453075,9.894e-05,2]
[421316158,1777416642945,-193.0,9.908e-05,2]
[421316159,1777416642969,-205.95935893,9.908e-05,2]
[421316160,1777416642991,-94.04064107,9.908e-05,2]
[421316161,1777416643001,-193.0,9.945e-05,2]
[421316162,1777416643012,-55.76306691,9.945e-05,2]
[421316163,1777416643203,-4944.23693309,9.945e-05,2]
[421316164,1777416643215,-300.0,9.945e-05,2]
[421316165,1777416643226,-500.0,9.945e-05,2]
[421316166,1777416643237,-500.0,9.961e-05,2]
[421316167,1777416643249,-293.78,9.985e-05,2]
[421316168,1777416643261,-500.0,9.985e-05,2]
[421316169,1777416643272,-313.94366291,0.0001,2]
[421316170,1777416643283,-633.90126618,0.0001,2]
[421316171,1777416643293,-580.19933328,0.0001,2]
[421316172,1777416643304,-1428.38747117,0.00010183,2]
[421316173,1777416643314,-359.12660286,0.00010183,2]
[421316174,1777416643324,-151.0,0.00010183,2]
[421316175,1777416643336,-181.0801015,0.00010183,2]
[421316176,1777416643349,-151.0,0.00010238,2]
[421316177,1777416643361,-293.78,0.00010259,2]
[421316178,1777416643372,-151.0,0.00010293,2]
[421316179,1777416643383,-255.0,0.00010328,2]
[421316180,1777416643394,-151.0,0.00010348,2]
[421316181,1777416643405,-151.0,0.00010403,2]
[421316182,1777416643415,-151.0,0.00010458,2]
[421316183,1777416643425,-3055.94,0.00010475,2]
[421316184,1777416643435,-9999.99,0.00010475,2]
[421316185,1777416643445,-150.99,0.00010475,2]
[421316186,1777416643456,-156.53338377,0.00010513,2]
[421316187,1777416643467,-293.81,0.00010533,2]
[421316188,1777416643479,-1481.23780761,0.00010731,2]
[421316189,1777416643488,-767.0,0.0001075,5]
[421316190,1777416643498,-619.0,0.0001075,5]
[421316191,1777416643509,-272.0690965,0.000108,2]
[421316192,1777416643525,-2351.0,0.00010883,2]
[421316193,1777416643536,-1000.0,0.000111,2]
[421316194,1777416643546,-991.0,0.000111,2]
[421316195,1777416643557,-307.0,0.000111,2]
[421316196,1777416643569,-517.0,0.0001119,3]
[421316197,1777416643580,-1536.04360649,0.00011279,2]
[421316198,1777416643591,-200.0,0.000113,2]
[421316199,1777416643601,-200.0,0.000113,2]
[421316200,1777416643612,-500.0,0.00011534,2]
[421316201,1777416643624,-152.0,0.00011581,7]
[421316202,1777416643635,-152.0,0.00011581,7]
[421316203,1777416643647,-152.0,0.00011581,7]
[421316204,1777416643657,-152.0,0.00011581,7]
[421316205,1777416643668,-152.0,0.00011581,7]
[421316206,1777416643678,-152.0,0.00011581,7]
[421316207,1777416643688,-152.0,0.00011581,7]
[421316208,1777416643699,-152.0,0.00011581,7]
[421316209,1777416643710,-152.0,0.00011593,7]
[421316210,1777416643721,-2762.02663758,0.0001176,2]
[421316211,1777416643732,-2568.5540291,0.00011782,2]
[421316212,1777416643744,-28858.7002157,0.00011782,2]
[421316213,1777416643754,-253.5099549,0.00011782,2]
[421316214,1777416643765,-533.9290725,0.00011782,2]
[421316215,1777416643776,-1592.87721993,0.00011827,2]
[421316216,1777416643786,-10000.0,0.0001188,2]
[421316217,1777416643797,-2549.67692124,0.000119,2]
[421316218,1777416643808,-206.65104624,0.000119,2]
[421316219,1777416643819,-10178.9811331,0.000119,2]
[421316220,1777416643830,-5000.0,0.000119,2]
[421316221,1777416643840,-1207.0,0.00011972,2]
[421316223,1777416643851,-638.0,0.00011973,2]
[421316224,1777416643861,-500.2403318,0.00011973,2]
[421316226,1777416643871,-500.0,0.00011973,2]
[421316227,1777416643882,-227.8314446,0.00011973,2]
[421316228,1777416643893,-300.0,0.00011999,2]
[421316230,1777416643908,-666.0,0.00011999,2]
[421316231,1777416643919,-666.0,0.00011999,2]
[421316232,1777416643930,-500.0,0.00011999,2]
[421316233,1777416643940,-500.0,0.00011999,2]
[421316234,1777416643951,-423.82568991,0.00011999,2]
[421316235,1777416643961,-500.0,0.00011999,2]
[421316236,1777416643972,-274.39239278,0.00011999,2]
[421316237,1777416643983,-294.75706396,0.00011999,2]
[421316238,1777416643993,-500.0,0.00011999,2]
[421316239,1777416644004,-372.31773831,0.00011999,2]
[421316240,1777416644016,-312853.75857766,0.00012,2]
[421316241,1777416644328,-0.42298041,0.00012,2]
[421316245,1777416646144,-1165.57730191,0.00012,2]
[421316246,1777416646199,-1841.35109172,0.0001176,2]
[421316247,1777416646209,-4531.86655416,0.00012,2]
[421316248,1777416646222,-130791.19355146,0.00012,2]
[421316249,1777416646256,-793.1136,0.00012,2]
[421316250,1777416646362,-26043.30398392,0.00012,2]
[421316251,1777416646374,-6486.69601608,0.00012,2]
[421316252,1777416646387,-46249.356553,0.00012,2]
[421316253,1777416646785,-922.71694264,0.00012,2]
[421316254,1777416646797,-537.60600006,0.00012,2]
[421316276,1777417831997,-196.0,9.038e-05,2]
[421316277,1777417832009,-300.0,9.038e-05,2]
[421316278,1777417832020,-396.62471101,9.038e-05,2]
[421316279,1777417832034,-803.37528899,9.038e-05,2]
[421316280,1777417832046,-296.62471101,9.038e-05,2]
[421316281,1777417832062,-3.37528899,9.038e-05,2]
[421316282,1777417832074,-300.0,9.038e-05,2]
[421316283,1777417832085,-250.0,9.039e-05,2]
[421316284,1777417832097,-293.90311272,9.039e-05,2]
[421316285,1777417832111,-6.09688728,9.039e-05,2]
[421316286,1777417832123,-259.98774075,9.039e-05,2]
[421316287,1777417832135,-21856.92598608,9.04e-05,2]
[421316288,1777417832146,-3368.225,9.053e-05,2]
[421316289,1777417832157,-236.34,9.053e-05,2]
[421316290,1777417832168,-1313.7831,9.138e-05,2]
[421316291,1777417832180,-1469.7316,9.138e-05,2]
[421316292,1777417832192,-3536.42705759,9.235e-05,2]
[421316293,1777417832203,-150.0,9.236e-05,2]
[421316294,1777417832215,-760.34091502,9.237e-05,2]
[421316295,1777417832228,-760.34091502,9.237e-05,2]
[421316296,1777417832239,-760.34091502,9.237e-05,2]
[421316297,1777417832251,-760.34091502,9.237e-05,2]
[421316298,1777417832263,-760.34091502,9.237e-05,2]
[421316300,1777417832274,-760.34091502,9.237e-05,2]
[421316302,1777417832286,-760.34091502,9.237e-05,2]
[421316304,1777417832299,-760.34091502,9.237e-05,2]
[421316306,1777417832310,-760.34091502,9.237e-05,2]
[421316308,1777417832323,-760.34091502,9.237e-05,2]
[421316310,1777417832333,-760.34091502,9.237e-05,2]
[421316312,1777417832345,-760.34091502,9.237e-05,2]
[421316314,1777417832357,-760.34091502,9.237e-05,2]
[421316317,1777417832369,-760.34091502,9.237e-05,2]
[421316319,1777417832380,-760.34091502,9.237e-05,2]
[421316321,1777417832391,-760.34091502,9.237e-05,2]
[421316324,1777417832403,-760.34091502,9.237e-05,2]
[421316327,1777417832414,-760.34091502,9.237e-05,2]
[421316330,1777417832426,-760.34091502,9.237e-05,2]
[421316333,1777417832438,-760.34091502,9.237e-05,2]
[421316337,1777417832450,-760.34091502,9.237e-05,2]
[421316341,1777417832462,-760.34091502,9.237e-05,2]
[421316343,1777417832474,-760.34091502,9.237e-05,2]
[421316344,1777417832485,-760.34091502,9.237e-05,2]
[421316345,1777417832497,-760.34091502,9.237e-05,2]
[421316346,1777417832509,-760.34091502,9.237e-05,2]
[421316347,1777417832521,-760.34091502,9.237e-05,2]
[421316348,1777417832533,-760.34091502,9.237e-05,2]
[421316349,1777417832546,-760.34091502,9.237e-05,2]
[421316350,1777417832558,-760.34091502,9.237e-05,2]
[421316351,1777417832570,-760.34091502,9.237e-05,2]
[421316352,1777417832582,-760.34091502,9.237e-05,2]
[421316353,1777417832593,-760.34091502,9.237e-05,2]
[421316354,1777417832605,-760.34091502,9.237e-05,2]
[421316355,1777417832618,-760.34091502,9.237e-05,2]
[421316356,1777417832631,-760.34091502,9.237e-05,2]
[421316357,1777417832643,-760.34091502,9.237e-05,2]
[421316358,1777417832655,-760.34091502,9.237e-05,2]
[421316359,1777417832667,-760.34091502,9.237e-05,2]
[421316360,1777417832678,-760.34091502,9.237e-05,2]
[421316361,1777417832693,-760.34091502,9.237e-05,2]
[421316362,1777417832704,-760.34091502,9.237e-05,2]
[421316363,1777417832716,-760.34091502,9.237e-05,2]
[421316364,1777417832727,-760.34091502,9.237e-05,2]
[421316365,1777417832738,-760.34091502,9.237e-05,2]
[421316366,1777417832749,-760.34091502,9.237e-05,2]
[421316367,1777417832761,-760.34091502,9.237e-05,2]
[421316368,1777417832774,-760.34091502,9.237e-05,2]
[421316369,1777417832786,-760.34091502,9.237e-05,2]
[421316370,1777417832798,-760.34091502,9.237e-05,2]
[421316371,1777417832810,-768.18122599,9.237e-05,2]
[421316372,1777417832821,-768.18122599,9.237e-05,2]
[421316373,1777417832834,-768.18122599,9.237e-05,2]
[421316374,1777417832845,-768.18122599,9.237e-05,2]
[421316375,1777417832856,-768.18122599,9.237e-05,2]
[421316376,1777417832866,-768.18122599,9.237e-05,2]
[421316377,1777417832877,-768.18122599,9.237e-05,2]
[421316378,1777417832887,-768.18122599,9.237e-05,2]
[421316379,1777417832898,-768.18122599,9.237e-05,2]
[421316380,1777417832909,-768.18122599,9.237e-05,2]
[421316381,1777417832920,-768.18122599,9.237e-05,2]
[421316382,1777417832930,-768.18122599,9.237e-05,2]
[421316383,1777417832942,-768.18122599,9.237e-05,2]
[421316384,1777417832953,-768.18122599,9.237e-05,2]
[421316385,1777417832964,-768.18122599,9.237e-05,2]
[421316386,1777417832975,-768.18122599,9.237e-05,2]
[421316387,1777417832985,-768.18122599,9.237e-05,2]
[421316388,1777417832997,-768.18122599,9.237e-05,2]
[421316389,1777417833009,-768.18122599,9.237e-05,2]
[421316390,1777417833020,-768.18122599,9.237e-05,2]
[421316391,1777417833030,-768.18122599,9.237e-05,2]
[421316392,1777417833042,-768.18122599,9.237e-05,2]
[421316393,1777417833052,-768.18122599,9.237e-05,2]
[421316394,1777417833063,-768.18122599,9.237e-05,2]
[421316395,1777417833074,-768.18122599,9.237e-05,2]
[421316396,1777417833085,-768.18122599,9.237e-05,2]
[421316397,1777417833095,-768.18122599,9.237e-05,2]
[421316398,1777417833105,-768.18122599,9.237e-05,2]
[421316399,1777417833116,-802.1068512,9.237e-05,2]
[421316400,1777417833126,-802.1068512,9.237e-05,2]
[421316401,1777417833137,-802.1068512,9.237e-05,2]
[421316402,1777417833148,-802.1068512,9.237e-05,2]
[421316403,1777417833158,-802.1068512,9.237e-05,2]
[421316404,1777417833169,-802.1068512,9.237e-05,2]
[421316405,1777417833180,-802.1068512,9.237e-05,2]
[421316406,1777417833190,-802.1068512,9.237e-05,2]
[421316407,1777417833201,-802.1068512,9.237e-05,2]
[421316408,1777417833212,-802.1068512,9.237e-05,2]
[421316409,1777417833222,-802.1068512,9.237e-05,2]
[421316410,1777417833233,-254376.32771483,9.238e-05,2]
[421316411,1777417833247,-113059.37534699,9.238e-05,2]
[421316412,1777417833260,-312.7,9.238e-05,2]
[421316413,1777417833272,-531.0,9.238e-05,2]
[421316414,1777417833285,-6263.32093304,9.238e-05,2]
[421316415,1777417833298,-648.73496734,9.238e-05,2]
[421316416,1777417833311,-4900.19607457,9.238e-05,2]
[421316421,1777417838278,-50208.94592828,8.953e-05,2]
[421316422,1777417838332,-426.61846658,8.953e-05,2]
[421316423,1777417838346,-8460.0,8.953e-05,2]
[421316424,1777417838358,-49400.26685555,8.953e-05,2]
[421316425,1777417838386,-5861.0,8.953e-05,2]